bitfinex-derivatives/quotes_BTCF0:USTF0_20241008
["timestamp","ask_amount","ask_price","bid_price","bid_amount"]
[1728362109055,0.544493,62810.0,62803.0,0.0111]
[1728362109056,0.12,62807.0,62803.0,0.0111]
[1728362109250,0.4808,62804.0,62799.0,0.0037]
[1728362109557,0.12,62801.0,62799.0,0.0037]
[1728362112266,0.121,62801.0,62799.0,0.0037]
[1728362116253,0.08114597,62801.0,62800.0,0.20063737]
[1728362116453,0.121,62801.0,62800.0,0.20063737]
[1728362116660,0.59872,62801.0,62800.0,0.07924199]
[1728362116862,0.59872,62801.0,62799.0,0.08294199]
[1728362117053,0.121,62801.0,62799.0,0.0037]
[1728362117251,0.122,62801.0,62799.0,0.0037]
[1728362117957,0.121,62801.0,62799.0,0.0037]
[1728362118454,0.121,62801.0,62800.0,0.06320008]
[1728362118651,0.001,62801.0,62799.0,0.0037]
[1728362118858,0.121,62801.0,62799.0,0.0037]
[1728362119261,0.121,62801.0,62800.0,0.06318459]
[1728362120363,0.4818,62801.0,62800.0,0.06318459]
[1728362120564,0.42600316,62801.0,62800.0,0.06318459]
[1728362121367,0.06520316,62801.0,62799.0,0.0037]
[1728362121567,0.3608,62800.0,62799.0,0.0037]
[1728362121763,0.06520316,62801.0,62799.0,0.0037]
[1728362122070,0.3608,62800.0,62799.0,0.0037]
[1728362122859,0.31297519,62800.0,62799.0,0.08294199]
[1728362123161,0.31297519,62800.0,62799.0,0.20433538]
[1728362123356,0.31397519,62800.0,62799.0,0.0668519]
[1728362125071,0.31397519,62800.0,62799.0,0.14664599]
[1728362125072,0.43397519,62800.0,62799.0,0.14664599]
[1728362125363,0.43397519,62800.0,62799.0,0.18879141]
[1728362125972,0.43397519,62800.0,62799.0,0.26772368]
[1728362126160,0.31397519,62800.0,62799.0,0.18879141]
[1728362126356,0.43397519,62800.0,62799.0,0.067404]
[1728362128267,0.43397519,62800.0,62799.0,0.18879103]
[1728362128563,0.001,62800.0,62799.0,0.30879103]
[1728362128771,0.001,62800.0,62799.0,0.45653066]
[1728362130270,0.0037,62809.0,62808.0,0.063695]
[1728362130465,0.0043,62813.0,62811.0,0.063692]
[1728362130466,0.3608,62813.0,62811.0,0.063692]
[1728362130663,0.3608,62813.0,62812.0,0.07895727]
[1728362130870,0.3608,62813.0,62812.0,0.26401396]
[1728362131064,0.12,62814.0,62813.0,0.06369]
[1728362131266,0.3608,62814.0,62813.0,0.18505447]
[1728362131472,0.0037,62819.0,62811.0,0.12]
[1728362131668,0.3608,62820.0,62818.0,0.063685]
[1728362132961,0.3608,62820.0,62819.0,0.063684]
[1728362134066,0.3608,62820.0,62819.0,0.064684]
[1728362134267,0.3608,62820.0,62819.0,0.001]
[1728362134967,0.3608,62820.0,62819.0,0.002]
[1728362137078,0.183682,62821.0,62819.0,0.002]
[1728362137380,0.544482,62821.0,62819.0,0.002]
[1728362138573,0.544482,62821.0,62819.0,0.001]
[1728362138780,0.544482,62821.0,62819.0,0.002]
[1728362142671,0.4808,62821.0,62819.0,0.002]
[1728362142875,0.4808,62821.0,62819.0,0.065684]
[1728362144285,0.4808,62821.0,62819.0,0.002]
[1728362144980,0.3608,62820.0,62819.0,0.002]
[1728362147384,0.3608,62820.0,62819.0,0.001]
[1728362147586,0.12,62821.0,62819.0,0.002]
[1728362147777,0.3608,62820.0,62819.0,0.002]
[1728362148186,0.424483,62820.0,62819.0,0.002]
[1728362149482,0.424483,62820.0,62819.0,0.001]
[1728362149688,0.424483,62820.0,62819.0,0.002]
[1728362153285,0.44914185,62820.0,62819.0,0.002]
[1728362153590,0.424483,62820.0,62819.0,0.002]
[1728362156080,0.3608,62820.0,62819.0,0.002]
[1728362156388,0.063679,62824.0,62819.0,0.065684]
[1728362156586,0.063679,62824.0,62820.0,0.0302]
[1728362158087,0.063679,62824.0,62820.0,0.093883]
[1728362158385,0.00238851,62826.0,62822.0,0.12]
[1728362159886,0.36318851,62826.0,62823.0,0.06368]
[1728362160593,0.36318851,62826.0,62823.0,0.14261332]
[1728362160977,0.36318851,62826.0,62823.0,0.14361332]
[1728362161786,0.00238851,62826.0,62824.0,0.20026669]
[1728362161986,0.00238851,62826.0,62824.0,0.07893332]
[1728362162394,0.00238851,62826.0,62823.0,0.14361332]
[1728362162692,0.00238851,62826.0,62823.0,0.14461332]
[1728362162892,0.12,62824.0,62823.0,0.002]
[1728362163189,0.08016534,62824.0,62823.0,0.002]
[1728362163589,0.08016534,62824.0,62823.0,0.001]
[1728362165295,0.08016534,62824.0,62823.0,0.002]
[1728362165691,0.00238851,62826.0,62823.0,0.002]
[1728362165896,0.12,62825.0,62823.0,0.002]
[1728362172099,0.063679,62824.0,62823.0,0.002]
[1728362173495,0.063679,62824.0,62823.0,0.001]
[1728362173799,0.063679,62824.0,62823.0,0.002]
[1728362177399,0.12,62825.0,62823.0,0.002]
[1728362177995,0.36318851,62826.0,62825.0,0.063678]
[1728362178190,0.36318851,62826.0,62825.0,0.18501652]
[1728362180190,0.36318851,62826.0,62825.0,0.18601652]
[1728362181407,0.36318851,62826.0,62825.0,0.18701652]
[1728362181598,0.36318851,62826.0,62825.0,0.28176524]
[1728362182296,0.36318851,62826.0,62825.0,0.18701652]
[1728362182606,0.36318851,62826.0,62825.0,0.28196007]
[1728362182799,0.063672,62831.0,62825.0,0.18701652]
[1728362182998,0.063672,62831.0,62830.0,0.07911967]
[1728362183197,0.063672,62831.0,62830.0,0.12133026]
[1728362183498,0.063672,62831.0,62830.0,0.20045654]
[1728362183701,0.063672,62831.0,62825.0,0.065678]
[1728362183908,0.063672,62831.0,62825.0,0.064678]
[1728362184203,0.063672,62831.0,62825.0,0.065678]
[1728362184501,0.063672,62831.0,62830.0,0.001]
[1728362186291,0.063672,62831.0,62825.0,0.064678]
[1728362186495,0.063672,62831.0,62830.0,0.001]
[1728362186900,0.063672,62831.0,62830.0,0.002]
[1728362187400,0.063672,62831.0,62830.0,0.001]
[1728362187599,0.063672,62831.0,62825.0,0.064678]
[1728362187600,0.063672,62831.0,62825.0,0.065678]
[1728362187904,0.12,62829.0,62825.0,0.065678]
[1728362188399,0.12,62826.0,62825.0,0.001]
[1728362188808,0.183677,62826.0,62825.0,0.001]
[1728362189104,0.424469,62834.0,62825.0,0.121]
[1728362189296,0.424469,62834.0,62829.0,0.12]
[1728362189495,0.12,62833.0,62830.0,0.001]
[1728362189996,0.424469,62834.0,62830.0,0.064673]
[1728362190197,0.424469,62834.0,62830.0,0.063673]
[1728362190198,0.544469,62834.0,62830.0,0.063673]
[1728362190598,0.12,62831.0,62830.0,0.12697402]
[1728362191004,0.12,62831.0,62830.0,0.12797402]
[1728362191197,0.12,62831.0,62830.0,0.12897402]
[1728362195505,0.12,62831.0,62830.0,0.002]
[1728362196206,0.183672,62831.0,62830.0,0.002]
[1728362196807,0.183672,62831.0,62830.0,0.04944665]
[1728362197007,0.183672,62831.0,62830.0,0.002]
[1728362200008,0.544472,62831.0,62830.0,0.002]
[1728362201612,0.183672,62831.0,62830.0,0.002]
[1728362201817,0.544472,62831.0,62830.0,0.002]
[1728362204817,0.5682742,62831.0,62830.0,0.002]
[1728362208416,0.5682742,62831.0,62826.0,0.0111]
[1728362208417,0.063676,62827.0,62826.0,0.0111]
[1728362208620,0.06368,62823.0,62822.0,0.0111]
[1728362208813,0.063682,62821.0,62820.0,0.06330102]
[1728362210124,0.063682,62821.0,62820.0,0.06426097]
[1728362210317,0.063682,62821.0,62820.0,0.001]
[1728362210510,0.063682,62821.0,62820.0,0.002]
[1728362211018,0.063682,62821.0,62820.0,0.06526097]
[1728362211411,0.063682,62821.0,62820.0,0.002]
[1728362215321,0.08788057,62821.0,62820.0,0.002]
[1728362221019,1.16544057,62821.0,62820.0,0.002]
[1728362221224,1.16544057,62821.0,62816.0,0.0111]
[1728362221423,0.544486,62817.0,62812.0,0.0111]
[1728362221621,0.063692,62811.0,62810.0,0.0111]
[1728362221824,0.183692,62811.0,62802.0,0.0303]
[1728362222019,0.1837,62803.0,62802.0,0.0303]
[1728362223426,0.1837,62803.0,62802.0,0.0333]
[1728362223727,0.1837,62803.0,62802.0,0.0403]
[1728362224320,0.1837,62803.0,62802.0,0.0343]
[1728362224928,0.1857,62803.0,62802.0,0.0313]
[1728362225626,0.1837,62803.0,62802.0,0.0313]
[1728362225826,0.1857,62803.0,62802.0,0.0303]
[1728362227036,0.1867,62803.0,62802.0,0.0303]
[1728362227540,0.1857,62803.0,62802.0,0.0303]
[1728362227728,0.1877,62803.0,62802.0,0.0303]
[1728362228035,0.1867,62803.0,62802.0,0.0303]
[1728362230737,0.123,62803.0,62802.0,0.15168096]
[1728362230931,0.1867,62803.0,62802.0,0.23064657]
[1728362231133,0.003,62803.0,62802.0,0.15168096]
[1728362232733,0.0667,62803.0,62802.0,0.15168096]
[1728362235735,0.0667,62803.0,62802.0,0.0303]
[1728362237442,0.0667,62803.0,62802.0,0.23064649]
[1728362237644,0.0667,62803.0,62802.0,0.23064615]
[1728362238733,0.0667,62803.0,62802.0,0.0303]
[1728362239541,0.0667,62803.0,62802.0,0.10926937]
[1728362239746,0.0667,62803.0,62802.0,0.0303]
[1728362240438,0.0667,62803.0,62802.0,0.10926937]
[1728362241740,0.0667,62803.0,62802.0,0.15167828]
[1728362243835,0.0667,62803.0,62802.0,0.0303]
[1728362247743,0.1867,62803.0,62802.0,0.0303]
[1728362250851,0.1867,62803.0,62802.0,0.24662719]
[1728362251153,0.1867,62803.0,62802.0,0.15168359]
[1728362252748,0.1867,62803.0,62802.0,0.29942474]
[1728362254656,0.21028175,62803.0,62802.0,0.29942474]
[1728362255450,0.21028175,62803.0,62802.0,0.29942812]
[1728362255656,0.21028175,62803.0,62802.0,0.26912812]
[1728362255956,0.21028175,62803.0,62802.0,0.12138359]
[1728362256946,0.21028175,62803.0,62799.0,0.07925786]
[1728362257159,0.183703,62800.0,62799.0,0.07925786]
[1728362257353,0.063704,62799.0,62798.0,0.07925786]
[1728362257560,0.278404,62799.0,62798.0,0.20065786]
[1728362258058,0.278404,62799.0,62798.0,0.1214]
[1728362258257,0.278404,62799.0,62798.0,0.07922212]
[1728362258446,0.278404,62799.0,62797.0,0.07922212]
[1728362258651,0.063706,62797.0,62796.0,0.07922212]
[1728362258953,0.063709,62794.0,62790.0,0.0037]
[1728362259157,0.183709,62794.0,62790.0,0.02410654]
[1728362259460,0.183709,62794.0,62787.0,0.0037]
[1728362259669,0.183709,62794.0,62785.0,0.4822]
[1728362260160,0.183709,62794.0,62790.0,0.007]
[1728362260661,0.183709,62794.0,62787.0,0.01]
[1728362261352,0.063714,62790.0,62787.0,0.13]
[1728362261549,0.12,62788.0,62787.0,0.007]
[1728362261760,0.183716,62788.0,62787.0,0.007]
[1728362262261,0.183716,62788.0,62786.0,0.02445823]
[1728362262262,0.183716,62788.0,62785.0,0.3608]
[1728362263457,0.183716,62788.0,62787.0,0.013]
[1728362263660,0.183716,62788.0,62787.0,0.016]
[1728362263958,0.183716,62788.0,62787.0,0.003]
[1728362264558,0.183716,62788.0,62785.0,0.03468799]
[1728362264764,0.063717,62787.0,62785.0,0.03468799]
[1728362265063,0.063718,62786.0,62785.0,0.03468799]
[1728362265665,0.063718,62786.0,62785.0,0.02868799]
[1728362265849,0.063718,62786.0,62785.0,0.29787095]
[1728362266355,0.063718,62786.0,62785.0,0.30187095]
[1728362267154,0.063718,62786.0,62785.0,0.15409634]
[1728362267460,0.063718,62786.0,62785.0,0.16009634]
[1728362268053,0.063718,62786.0,62785.0,0.30787162]
[1728362268458,0.063718,62786.0,62785.0,0.13540835]
[1728362268864,0.063718,62786.0,62785.0,0.28318526]
[1728362269058,0.183718,62786.0,62785.0,0.28318526]
[1728362269564,0.183718,62786.0,62785.0,0.13541341]
[1728362270161,0.544518,62786.0,62785.0,0.13541341]
[1728362270361,0.544518,62786.0,62785.0,0.23032319]
[1728362270562,0.183718,62786.0,62785.0,0.23032319]
[1728362271168,0.183718,62786.0,62785.0,0.23032545]
[1728362271461,0.183718,62786.0,62785.0,0.13541341]
[1728362273170,0.183718,62786.0,62785.0,0.13541822]
[1728362273672,0.12,62786.0,62785.0,0.13541822]
[1728362273870,0.12,62786.0,62785.0,0.014]
[1728362274965,0.183718,62786.0,62785.0,0.014]
[1728362280763,0.183718,62786.0,62785.0,0.09307259]
[1728362281966,0.183718,62786.0,62785.0,0.21449553]
[1728362282571,0.183718,62786.0,62785.0,0.13542294]
[1728362282766,0.183718,62786.0,62785.0,0.21453538]
[1728362283276,0.183718,62786.0,62785.0,0.13542294]
[1728362284771,0.544518,62786.0,62785.0,0.13542294]
[1728362287477,0.544518,62786.0,62785.0,0.23033498]
[1728362287867,0.544518,62786.0,62785.0,0.13542294]
[1728362288070,0.544518,62786.0,62785.0,0.23033498]
[1728362288574,0.544518,62786.0,62785.0,0.23033499]
[1728362288770,0.544518,62786.0,62785.0,0.014]
[1728362290776,0.544518,62786.0,62781.0,0.0037]
[1728362290777,0.063722,62782.0,62781.0,0.0037]
[1728362290975,0.063726,62778.0,62777.0,0.0037]
[1728362291171,0.063726,62778.0,62774.0,0.0321]
[1728362291172,0.063729,62775.0,62774.0,0.0321]
[1728362291377,0.183729,62775.0,62774.0,0.0321]
[1728362292983,0.183729,62775.0,62774.0,0.0361]
[1728362294271,0.184729,62775.0,62774.0,0.0431]
[1728362295779,0.08107304,62775.0,62774.0,0.31234639]
[1728362295975,0.001,62775.0,62774.0,0.31234639]
[1728362296170,0.121,62775.0,62774.0,0.31234639]
[1728362296369,0.184729,62775.0,62774.0,0.31234639]
[1728362296568,0.183729,62775.0,62774.0,0.58141944]
[1728362296773,0.183729,62775.0,62774.0,0.56540296]
[1728362296969,0.183729,62775.0,62774.0,0.28024639]
[1728362298386,0.183729,62775.0,62774.0,0.28026457]
[1728362298890,0.661649,62775.0,62774.0,0.28026457]
[1728362299076,0.661649,62775.0,62774.0,0.13243696]
[1728362299380,1.261649,62775.0,62774.0,0.22752446]
[1728362299582,1.261649,62775.0,62774.0,0.22753109]
[1728362299787,1.261649,62775.0,62774.0,0.13243696]
[1728362301588,1.261649,62775.0,62774.0,0.21164905]
[1728362301981,1.268649,62775.0,62774.0,0.12943696]
[1728362302478,1.278649,62775.0,62774.0,0.12343696]
[1728362302682,0.678649,62775.0,62774.0,0.12343696]
[1728362303183,0.678649,62775.0,62774.0,0.20261725]
[1728362303584,0.063732,62772.0,62771.0,0.09509413]
[1728362303786,0.183732,62772.0,62771.0,0.07919011]
[1728362304187,0.12,62772.0,62769.0,0.07919011]
[1728362304382,0.0325,62774.0,62769.0,0.07919011]
[1728362304383,0.544534,62770.0,62769.0,0.07919011]
[1728362305894,0.552534,62770.0,62769.0,0.08019011]
[1728362306292,0.552534,62770.0,62769.0,0.001]
[1728362306491,0.063735,62769.0,62768.0,0.07919011]
[1728362306696,0.063737,62767.0,62766.0,0.07919011]
[1728362306997,0.063737,62767.0,62765.0,0.07919011]
[1728362306998,0.4808,62767.0,62765.0,0.07919011]
[1728362307183,0.693298,62766.0,62764.0,0.07919011]
[1728362307397,0.06374,62764.0,62763.0,0.07919011]
[1728362307581,0.12,62764.0,62762.0,0.07919011]
[1728362307797,0.063742,62762.0,62761.0,0.07919011]
[1728362308096,0.183742,62762.0,62761.0,0.07919011]
[1728362308286,0.063743,62761.0,62760.0,0.07919011]
[1728362308490,0.183743,62761.0,62760.0,0.07919011]
[1728362309183,0.12,62761.0,62759.0,0.07919011]
[1728362309390,0.183744,62760.0,62759.0,0.07919011]
[1728362310091,0.183744,62760.0,62756.0,0.0324]
[1728362310092,0.063745,62759.0,62758.0,0.07919011]
[1728362310298,0.183745,62759.0,62758.0,0.07919011]
[1728362310991,0.183745,62759.0,62751.0,0.00239037]
[1728362310992,0.063752,62752.0,62751.0,0.00239037]
[1728362311189,0.183752,62752.0,62751.0,0.00239037]
[1728362312796,0.184752,62752.0,62751.0,0.01039037]
[1728362313198,0.184752,62752.0,62751.0,0.01439037]
[1728362315796,0.184752,62752.0,62751.0,0.012]
[1728362318793,0.121,62752.0,62751.0,0.28135337]
[1728362318995,0.12,62752.0,62751.0,0.56657914]
[1728362319191,0.12,62752.0,62751.0,0.45560448]
[1728362320101,0.183752,62752.0,62751.0,0.56636295]
[1728362320309,0.183752,62752.0,62751.0,0.45560448]
[1728362320602,0.183752,62752.0,62751.0,0.56639629]
[1728362320801,0.183752,62752.0,62751.0,0.28135337]
[1728362321195,0.183752,62752.0,62751.0,0.5664017]
[1728362321395,0.183752,62752.0,62751.0,0.39214518]
[1728362321597,0.183752,62752.0,62751.0,0.56640301]
[1728362322197,0.183752,62752.0,62751.0,0.4556112]
[1728362323902,0.183752,62752.0,62751.0,0.45561532]
[1728362325894,0.12791513,62752.0,62751.0,0.28135995]
[1728362329107,0.12791513,62752.0,62751.0,0.28135703]
[1728362330503,0.48871513,62752.0,62751.0,0.28135703]
[1728362333307,0.48871513,62752.0,62751.0,0.28135477]
[1728362334001,0.48871513,62752.0,62751.0,0.07550431]
[1728362334206,0.48871513,62752.0,62751.0,0.012]
[1728362338403,0.3608,62752.0,62751.0,0.012]
[1728362338605,0.14460973,62757.0,62751.0,0.075753]
[1728362338908,0.12,62754.0,62751.0,0.15513339]
[1728362339108,0.12,62754.0,62752.0,0.20085395]
[1728362339412,0.12,62754.0,62752.0,0.07938039]
[1728362339907,0.12,62754.0,62751.0,0.09138039]
[1728362340503,0.12,62754.0,62751.0,0.08738039]
[1728362340907,0.0163112,62754.0,62752.0,0.57055992]
[1728362341107,0.063749,62755.0,62753.0,0.44356878]
[1728362341412,0.063749,62755.0,62754.0,0.64418776]
[1728362342612,0.063749,62755.0,62754.0,0.44356878]
[1728362342811,0.063749,62755.0,62754.0,0.44856878]
[1728362343802,0.063749,62755.0,62754.0,0.44956878]
[1728362344213,0.183749,62755.0,62754.0,0.44956878]
[1728362346013,0.183749,62755.0,62754.0,0.65019347]
[1728362348023,0.183749,62755.0,62754.0,0.65020819]
[1728362349008,0.183749,62755.0,62754.0,0.06953121]
[1728362350816,0.183749,62755.0,62754.0,0.006]
[1728362353415,0.183749,62755.0,62754.0,0.05365532]
[1728362353823,0.183749,62755.0,62754.0,0.006]
[1728362356127,0.183749,62755.0,62754.0,0.27537885]
[1728362356429,0.183749,62755.0,62754.0,0.1274967]
[1728362359226,0.72,62755.0,62746.0,0.0037]
[1728362359437,0.06376,62744.0,62743.0,0.0037]
[1728362359622,0.12,62744.0,62735.0,0.0683]
[1728362359816,0.3608,62740.0,62736.0,0.14789481]
[1728362360041,0.12,62737.0,62735.0,0.19962646]
[1728362360230,0.30495147,62740.0,62736.0,0.32217744]
[1728362360529,0.12,62739.0,62737.0,0.44922156]
[1728362360729,0.12,62739.0,62738.0,0.32217744]
[1728362360920,0.07213114,62739.0,62738.0,0.32217744]
[1728362361729,0.30495147,62740.0,62738.0,0.32217744]
[1728362362029,0.12,62739.0,62736.0,0.12704412]
[1728362362219,0.12,62739.0,62737.0,0.44921681]
[1728362362415,0.12,62739.0,62738.0,0.32217269]
[1728362362625,0.183765,62739.0,62738.0,0.32217269]
[1728362362819,0.183765,62739.0,62738.0,0.32617269]
[1728362363929,0.14387497,62739.0,62738.0,0.32617269]
[1728362364124,0.14387497,62739.0,62738.0,0.011]
[1728362364520,0.14387497,62739.0,62738.0,0.3718]
[1728362364720,0.14387497,62739.0,62738.0,0.3728]
[1728362364928,0.50567497,62739.0,62738.0,0.012]
[1728362365522,0.50567497,62739.0,62738.0,0.05960864]
[1728362366228,0.50567497,62739.0,62738.0,0.012]
[1728362368836,0.425565,62739.0,62738.0,0.012]
[1728362369131,0.545565,62739.0,62738.0,0.012]
[1728362371127,0.545565,62739.0,62738.0,0.15991338]
[1728362373337,0.545565,62739.0,62738.0,0.15991267]
[1728362374240,0.545565,62739.0,62738.0,0.28142993]
[1728362375438,0.4818,62739.0,62738.0,0.28142993]
[1728362376137,0.545565,62739.0,62738.0,0.28142993]
[1728362377827,0.545565,62739.0,62738.0,0.45572616]
[1728362378340,0.545565,62739.0,62738.0,0.45571932]
[1728362379339,0.545565,62739.0,62738.0,0.2814231]
[1728362381047,0.4976924,62739.0,62738.0,0.2814231]
[1728362383431,0.4976924,62739.0,62738.0,0.28142304]
[1728362386437,0.4976924,62739.0,62738.0,0.012]
[1728362389243,0.4976924,62739.0,62738.0,0.09140307]
[1728362390344,0.4976924,62739.0,62738.0,0.012]
[1728362390751,0.4976924,62739.0,62738.0,0.09140307]
[1728362391240,0.4976924,62739.0,62738.0,0.21291986]
[1728362391442,0.4976924,62739.0,62738.0,0.012]
[1728362393440,0.44183863,62739.0,62738.0,0.28143459]
[1728362393841,0.44183863,62739.0,62738.0,0.28143625]
[1728362394345,0.44183863,62739.0,62738.0,0.56673476]
[1728362394543,0.44183863,62739.0,62738.0,0.28143625]
[1728362394948,0.44183863,62739.0,62738.0,0.39243094]
[1728362395551,0.44183863,62739.0,62738.0,0.56673407]
[1728362396053,0.44183863,62739.0,62738.0,0.45573938]
[1728362401049,0.39396368,62739.0,62738.0,0.45573938]
[1728362401452,0.39396368,62739.0,62738.0,0.012]
[1728362401653,0.27396368,62739.0,62738.0,0.012]
[1728362401852,0.39396368,62739.0,62738.0,0.0915411]
[1728362402252,0.39396368,62739.0,62738.0,0.21305721]
[1728362402448,0.39396368,62739.0,62738.0,0.0915411]
[1728362402653,0.39396368,62739.0,62738.0,0.21305709]
[1728362403164,0.39396368,62739.0,62738.0,0.0915411]
[1728362403462,0.39396368,62739.0,62738.0,0.21305711]
[1728362404559,0.39396368,62739.0,62738.0,0.0915411]
[1728362405358,0.39396368,62739.0,62738.0,0.012]
[1728362405560,0.183765,62739.0,62738.0,0.012]
[1728362405752,0.183765,62739.0,62738.0,0.21305856]
[1728362406155,0.183765,62739.0,62738.0,0.012]
[1728362408353,0.183765,62739.0,62738.0,0.1335188]
[1728362416357,0.183765,62739.0,62738.0,0.05973599]
[1728362416556,0.183765,62739.0,62738.0,0.012]
[1728362418358,0.183765,62739.0,62738.0,0.05973599]
[1728362419368,0.183765,62739.0,62738.0,0.012]
[1728362420367,0.183765,62739.0,62738.0,0.05973599]
[1728362422467,0.183765,62739.0,62738.0,0.012]
[1728362433765,1.261925,62739.0,62736.0,0.04773841]
[1728362434078,0.183767,62737.0,62736.0,0.04773841]
[1728362434273,0.063768,62736.0,62735.0,0.04773841]
[1728362434578,0.183768,62736.0,62735.0,0.04773316]
[1728362435475,0.185768,62736.0,62735.0,0.04773316]
[1728362436071,0.06377,62734.0,62733.0,0.04773316]
[1728362436277,0.54457,62734.0,62730.0,0.04773316]
[1728362436471,0.063774,62730.0,62729.0,0.07973316]
[1728362437275,0.063774,62730.0,62729.0,0.04773316]
[1728362437479,0.12,62731.0,62726.0,0.04773316]
[1728362437780,0.063779,62725.0,62724.0,0.04773316]
[1728362437984,0.063779,62725.0,62719.0,0.0074]
[1728362437985,0.063787,62718.0,62717.0,0.06734799]
[1728362438178,0.4808,62725.0,62716.0,0.42580799]
[1728362438179,0.0424,62724.0,62716.0,0.42580799]
[1728362438369,0.063788,62717.0,62716.0,0.42580799]
[1728362438572,0.183788,62717.0,62716.0,0.3608]
[1728362441078,0.184788,62717.0,62716.0,0.3668]
[1728362441471,0.185788,62717.0,62716.0,0.3728]
[1728362442487,0.20993894,62717.0,62716.0,0.3728]
[1728362445383,0.20993894,62717.0,62716.0,0.012]
[1728362446585,0.14615094,62717.0,62716.0,0.012]
[1728362447083,0.20993894,62717.0,62716.0,0.012]
[1728362451379,0.20793894,62717.0,62716.0,0.004]
[1728362451586,0.20793894,62717.0,62716.0,0.006]
[1728362454080,0.20793894,62717.0,62708.0,0.0037]
[1728362454081,0.063796,62709.0,62708.0,0.0037]
[1728362454286,0.063797,62708.0,62706.0,0.00239209]
[1728362454488,0.12,62707.0,62706.0,0.00239209]
[1728362455683,0.121,62707.0,62706.0,0.00239209]
[1728362460592,0.14523191,62707.0,62706.0,0.00239209]
[1728362461286,0.14523191,62707.0,62704.0,0.39386]
[1728362461487,0.14523191,62707.0,62704.0,0.3925]
[1728362461688,0.14523191,62707.0,62706.0,0.07955999]
[1728362462090,0.001,62707.0,62706.0,0.20113663]
[1728362462293,0.001,62707.0,62706.0,0.12157664]
[1728362462294,0.121,62707.0,62706.0,0.12157664]
[1728362464197,0.12,62707.0,62706.0,0.12157664]
[1728362464403,0.121,62707.0,62706.0,0.12157664]
[1728362466696,0.121,62707.0,62706.0,0.21702596]
[1728362466906,0.121,62707.0,62706.0,0.12157664]
[1728362467793,0.121,62707.0,62706.0,0.21702596]
[1728362468699,0.121,62707.0,62706.0,0.12157664]
[1728362469004,0.121,62707.0,62706.0,0.07953396]
[1728362469801,0.121,62707.0,62706.0,0.20110775]
[1728362470200,0.184798,62707.0,62706.0,0.07953396]
[1728362470901,0.184798,62707.0,62706.0,0.201109]
[1728362471400,0.0638,62705.0,62704.0,0.00136]
[1728362471606,0.063803,62702.0,62701.0,0.07953396]
[1728362471907,0.183803,62702.0,62701.0,0.07953396]
[1728362472201,0.12,62702.0,62698.0,0.07953396]
[1728362472395,0.12,62699.0,62697.0,0.07953396]
[1728362472601,0.12,62698.0,62697.0,0.07953396]
[1728362473296,0.183807,62698.0,62697.0,0.07953396]
[1728362473497,0.183807,62698.0,62695.0,0.0304]
[1728362473498,0.4808,62698.0,62694.0,0.0636698]
[1728362473698,0.4808,62698.0,62693.0,0.0636698]
[1728362473699,0.063811,62694.0,62693.0,0.0636698]
[1728362473900,0.12,62694.0,62691.0,0.0636698]
[1728362474092,0.063815,62691.0,62689.0,0.0636698]
[1728362474292,0.12,62690.0,62689.0,0.0636698]
[1728362474697,0.183815,62690.0,62689.0,0.0636698]
[1728362475100,0.183815,62690.0,62688.0,0.0636698]
[1728362475301,0.12,62689.0,62687.0,0.0636698]
[1728362475509,0.183817,62688.0,62687.0,0.0636698]
[1728362476905,0.184817,62688.0,62687.0,0.001]
[1728362478104,0.064817,62688.0,62687.0,0.001]
[1728362478304,0.185817,62688.0,62687.0,0.006]
[1728362483811,0.122,62688.0,62687.0,0.12761527]
[1728362484007,0.185817,62688.0,62687.0,0.12761527]
[1728362484416,0.185817,62688.0,62687.0,0.22306459]
[1728362484607,0.185817,62688.0,62687.0,0.12761527]
[1728362484809,0.192817,62688.0,62687.0,0.12361527]
[1728362485114,0.192817,62688.0,62687.0,0.21906459]
[1728362485315,0.12,62688.0,62687.0,0.27164157]
[1728362485810,0.127,62688.0,62687.0,0.27064157]
[1728362486204,0.063826,62679.0,62678.0,0.0037]
[1728362486408,0.46476411,62679.0,62678.0,0.09533351]
[1728362486719,0.46476411,62679.0,62676.0,0.09533129]
[1728362486912,0.183828,62677.0,62676.0,0.09533129]
[1728362487219,0.063833,62672.0,62669.0,0.11135754]
[1728362487409,0.12,62670.0,62669.0,0.11135754]
[1728362487612,0.12,62670.0,62669.0,0.28582996]
[1728362488022,0.12,62670.0,62669.0,0.11135754]
[1728362488317,0.183835,62670.0,62669.0,0.28583027]
[1728362488720,0.183835,62670.0,62668.0,0.11135754]
[1728362489017,0.12,62669.0,62668.0,0.11135754]
[1728362489214,0.12,62669.0,62668.0,0.5352726]
[1728362489413,0.183836,62669.0,62668.0,0.5352726]
[1728362489618,0.183836,62669.0,62668.0,0.64638869]
[1728362490016,0.183836,62669.0,62668.0,0.64838869]
[1728362490207,0.183836,62669.0,62668.0,0.5372726]
[1728362490413,0.243836,62669.0,62668.0,0.1764726]
[1728362490615,0.243836,62669.0,62668.0,0.3628]
[1728362490811,0.243836,62669.0,62668.0,0.3658]
[1728362491721,0.18,62669.0,62668.0,0.3668]
[1728362491919,0.243836,62669.0,62668.0,0.3668]
[1728362492219,0.243836,62669.0,62668.0,0.43027491]
[1728362492615,0.243836,62669.0,62668.0,0.3668]
[1728362493211,0.243836,62669.0,62668.0,0.43027491]
[1728362493515,0.243836,62669.0,62668.0,0.3668]
[1728362493718,0.243836,62669.0,62668.0,0.006]
[1728362495325,0.18,62669.0,62668.0,0.006]
[1728362498812,0.18,62669.0,62668.0,0.15406661]
[1728362500214,0.243836,62669.0,62668.0,0.15406661]
[1728362501126,0.243836,62669.0,62668.0,0.27571979]
[1728362502119,0.243836,62669.0,62668.0,0.56132167]
[1728362502423,0.243836,62669.0,62668.0,0.4502226]
[1728362503214,0.243836,62669.0,62668.0,0.57739514]